Cogmind - Beta 11 *** ADVENTURER MODE // 2022.03.18 @ 22:13:51 Player: IzRey Result: Destroyed by Y-64 Sentinel with KE Penetrator Performance ------------- Evolutions (5) 2500 Regions Visited (17) 3400 Robots Destroyed (177) 885 Value Destroyed (7583) 7583 Prototype IDs (39) 780 Alien Tech Used (0) 0 Bonus (1057) 1057 TOTAL SCORE: 16205 Bonus ------- High Alert Combat Kills 108 Follower Combat Kills 184 Aligned with FarCom 300 Met Data Miner 300 Met Imprinter 300 Friendly Fire -135 Cogmind --------- Core Integrity 0/1000 Matter 300/300 Energy 100/100 System Corruption 2% Temperature Cool (9) Movement Core (1350) Ox26 Location -5/Upper Caves Parts ------- > --- POWER (1) -------- (None) > --- PROPULSION (4) --- (None) > --- UTILITY (8) ------ Huge Storage Unit Core Analyzer > --- WEAPON (4) ------- (None) > --- INVENTORY (25) --- (None) Peak State ------------ > --- POWER ------------ Light Angular Momentum Engine > --- PROPULSION ------- Armored Huge Wheel Armored Huge Wheel > --- UTILITY ---------- Advanced Cooling System Humpback Advanced Targeting Computer Core Analyzer Improved Kinecellerator Improved Core Shielding Hacking Drone Bay > --- WEAPON ----------- Advanced Plasma Cannon Coil Gun Antimatter Cannon Makeshift Sword > --- INVENTORY -------- Improved Deuterium Engine Fission Core Light Fission Core Armored Huge Wheel Armored Huge Wheel Armored Huge Wheel Armored Huge Wheel Advanced Heat Sink Advanced Cooling System High-capacity Storage Unit Huge Storage Unit Improved Sensor Array Improved Sensor Array Kinecellerator Cloak of Protection System Restoration Module High-powered Tractor Beam Mobile Refinery Mk. CCLXVII Recalibrator Small Laser Heavy Laser Heavy Phase Cannon Magnetic Acceleration Cannon Mass Driver Enhanced Gauss Cannon Improved Grenade Launcher Long-range Missile Launcher Smartbomb Launcher Makeshift Axe Makeshift Spear [Rating: 91] Favorites ----------- Power Neutrino Core Engine Improved Deuterium Engine Power Core Neutrino Core Propulsion Armored Huge Wheel Leg Carbon-fiber Leg Wheel Armored Huge Wheel Utility Humpback Device Improved Cooling System Storage Humpback Processor Advanced Targeting Computer Protection Layered Medium Armor Plating Weapon Assault Cannon Energy Gun Small Laser Energy Cannon Phase Cannon Ballistic Gun Heavy Battle Rifle Ballistic Cannon Assault Cannon Launcher Long-range Missile Launcher Special Weapon Mining Laser Slashing Weapon Makeshift Sword Piercing Weapon Makeshift Spear Build | -11 -10 -10 -10 -9 -8 -7 -7 -7 -7 -6 -6 -6 -6 -6 -5 -5 -5 ------- Run | Scr Mat Min Exi Min Mat Fac Low Low Zio Pro Fac Low Low Dat Pro Fac Upp Slots Evolved 10 | . . . . . 4 2 . . . . 2 . . . . 2 . Power . | . . . . . . . . . . . . . . . . . . Propulsion 2 | . . . . . . . . . . . 2 . . . . . . Utility 6 | . . . . . 2 2 . . . . . . . . . 2 . Weapon 2 | . . . . . 2 . . . . . . . . . . . . Parts Attached 144 | 8 1 . 1 1 15 9 6 15 4 3 31 7 1 . 7 30 5 Power 17 | 1 . . . . 1 4 . 2 3 . 1 1 . . . 3 1 Engine 7 | 1 . . . . . 1 . 1 . . 1 . . . . 2 1 Core 10 | . . . . . 1 3 . 1 3 . . 1 . . . 1 . Reactor . | . . . . . . . . . . . . . . . . . . Propulsion 12 | 3 . . . . 1 1 . . . . 2 1 . . 1 2 1 Treads . | . . . . . . . . . . . . . . . . . . Leg 1 | . . . . . . . . . . . . . . . . . 1 Wheel 11 | 3 . . . . 1 1 . . . . 2 1 . . 1 2 . Hover . | . . . . . . . . . . . . . . . . . . Flight . | . . . . . . . . . . . . . . . . . . Utility 47 | 2 . . 1 . 2 2 1 4 . . 11 2 . . 2 19 1 Device 25 | 1 . . . . 1 . . 1 . . 6 . . . 1 15 . Storage 5 | 1 . . 1 . . 1 . . . . . 1 . . . 1 . Processor 4 | . . . . . . 1 1 . . . 1 . . . . 1 . Hackware . | . . . . . . . . . . . . . . . . . . Protection 13 | . . . . . 1 . . 3 . . 4 1 . . 1 2 1 Artifact . | . . . . . . . . . . . . . . . . . . Weapon 68 | 2 1 . . 1 11 2 5 9 1 3 17 3 1 . 4 6 2 Energy Gun 5 | 1 . . . . 1 1 . . . . 1 . . . 1 . . Energy Cannon 7 | . . . . . 1 . . . . . 4 . . . . 1 1 Ballistic Gun 18 | 1 . . . 1 3 . 2 3 . 2 3 . . . . 2 1 Ballistic Cannon 7 | . . . . . 1 . . . . . 5 . . . . 1 . Launcher 10 | . . . . . 2 . 1 1 . 1 . 2 . . 3 . . Special Weapon 4 | . 1 . . . 1 . 2 . . . . . . . . . . Impact Weapon . | . . . . . . . . . . . . . . . . . . Slashing Weapon 15 | . . . . . 2 1 . 3 1 . 4 1 1 . . 2 . Piercing Weapon 2 | . . . . . . . . 2 . . . . . . . . . Special Melee Weapon . | . . . . . . . . . . . . . . . . . . Unidentified Prototypes 5 | . . . . . . 1 . . . . 4 . . . . . . Parts Lost 65 | . . . . . 1 2 . 7 . . 7 3 . . 3 32 10 Power 10 | . . . . . . 1 . 1 . . . 1 . . . 5 2 Propulsion 12 | . . . . . 1 1 . . . . 1 1 . . 1 4 3 Utility 21 | . . . . . . . . 3 . . 2 1 . . 1 11 3 Weapon 22 | . . . . . . . . 3 . . 4 . . . 1 12 2 Highest Loss Streak 30 | . . . . . 1 1 . 5 . . 2 1 . . 1 30 4 To Critical Strikes 1 | . . . . . . . . . . . . . . . 1 . . Average Slot Usage (%) 79 | . 100 100 100 100 88 81 76 80 84 84 79 79 80 80 79 81 19 Engine 3 | . 14 14 14 14 1 3 7 3 2 . 4 3 . . . 2 . Core 3 | . . . . . 7 3 . 3 4 7 1 2 6 6 6 2 . Wheel 11 | . 28 28 28 28 18 12 7 7 7 7 13 13 13 13 12 10 1 Device 7 | . 14 14 14 14 9 7 7 6 7 7 6 6 6 6 6 14 . Storage 6 | . 14 14 14 14 9 7 7 7 7 7 6 5 6 6 6 4 5 Processor 6 | . . . . . . 6 7 7 7 7 6 6 6 6 6 10 5 Protection 9 | . . . . . 7 7 7 12 15 15 12 13 13 13 12 7 . Energy Cannon 3 | . . . . . 8 7 7 2 . . 3 6 6 6 4 2 . Ballistic Gun 7 | . 5 . . 14 14 7 7 14 15 14 6 . . . . 3 3 Ballistic Cannon 7 | . . . . . 1 7 7 7 7 7 8 13 13 13 13 8 . Special Weapon 1 | . 8 14 14 14 1 . 2 . . . . . . . . . . Slashing Weapon 4 | . . . . . 5 6 1 2 7 7 5 1 4 6 . 4 . Naked Turns . | . . . . . . . . . . . . . . . . . . Heaviest Build 264 | 14 14 13 48 49 83 248 252 255 257 257 263 264 264 258 262 255 100 Greatest Support 56 | 32 32 32 32 32 32 32 28 28 28 28 56 56 56 56 56 56 56 Greatest Overweight (x) 34 | 3 . . 1 1 2 8 8 9 9 9 4 4 4 4 9 34 33 Average Overweight (x) 5 | . . . . 1 1 7 8 8 8 9 4 3 4 4 4 3 11 Largest Inventory Capacity 35 | 8 8 8 20 20 20 35 35 35 35 35 35 35 35 35 35 35 25 Average Capacity 32 | 7 8 8 14 20 20 35 35 35 35 35 35 34 35 35 35 34 25 Most Carried 35 | 6 6 6 12 13 19 28 30 30 35 34 35 31 26 26 26 35 1 Average Carried 25 | 3 6 6 7 12 15 20 28 27 32 34 33 26 26 26 23 29 . Final Capacity 35 | 8 8 8 20 20 20 35 35 35 35 35 35 35 35 35 35 25 25 Final Carried 34 | 6 6 6 12 13 19 27 30 29 34 34 32 26 26 26 23 . . Class Distribution -------------------- 32% | Hauler-Tank 27% | Hauler-Mutant 15% | Hauler-Gunner 7% | Mutant 7% | Hauler-Assassin 3% | Scavenger-Assassin 3% | Skirmisher Dominant Class ---------------- Mutant | -10/Materials Mutant | -10/Mines Mutant | -10/Exiles Skirmisher | -9/Mines Scavenger-Assassin | -8/Materials Hauler-Assassin | -7/Factory Hauler-Gunner | -7/Lower Caves Hauler-Tank | -7/Lower Caves Hauler-Mutant | -7/Zion Hauler-Tank | -6/Proximity Caves Hauler-Tank | -6/Factory Hauler-Tank | -6/Lower Caves Hauler-Tank | -6/Lower Caves Hauler-Tank | -6/Data Miner Hauler-Tank | -5/Proximity Caves Hauler-Mutant | -5/Factory Mutant | -5/Upper Caves Resources | -11 -10 -10 -10 -9 -8 -7 -7 -7 -7 -6 -6 -6 -6 -6 -5 -5 -5 ----------- Run | Scr Mat Min Exi Min Mat Fac Low Low Zio Pro Fac Low Low Dat Pro Fac Upp Matter Collected 5068 | 316 . 10 . 50 278 197 123 376 40 94 1357 623 22 . 206 1202 174 Remotely 1027 | . . . . . . . . . . . . . . . . 1027 . Salvage Created 6478 | 184 . . . 41 502 214 101 625 . 93 1987 767 80 . 152 1310 422 Parts 355 | 20 . . . 5 24 14 6 32 . 10 110 21 4 . 13 84 12 Haulers Intercepted 1 | . . . . . . . . . . . . 1 . . . . . Recyclers Shooed . | . . . . . . . . . . . . . . . . . . Parts Field Recycled . | . . . . . . . . . . . . . . . . . . Retrieved Matter . | . . . . . . . . . . . . . . . . . . Parts Self-Destructed 98 | . . . . . . . 6 32 3 8 . 16 4 . 16 . 13 Prevented 3 | . . . . . . . . . . . . . 3 . . . . Kills | -11 -10 -10 -10 -9 -8 -7 -7 -7 -7 -6 -6 -6 -6 -6 -5 -5 -5 ------- Run | Scr Mat Min Exi Min Mat Fac Low Low Zio Pro Fac Low Low Dat Pro Fac Upp Combat Hostiles Destroyed 151 | . . . . 2 9 5 4 16 . 5 45 21 1 . 10 27 6 Melee 7 | . . . . . 2 . . 2 . . . 1 . . . 2 . Guns 35 | . . . . 1 4 . 3 7 . 1 14 . . . 1 3 1 Cannons 95 | . . . . 1 3 5 1 6 . 1 31 16 1 . 6 20 4 AOE 13 | . . . . . . . . 1 . 3 . 4 . . 3 2 . Classes Destroyed 15 | 3 . . . 3 2 1 1 2 . . 1 1 . . . 1 . Worker 7 | 2 . . . . 2 . . . . . 3 . . . . . . Builder 6 | . . . . 1 1 . . . . . 1 . . . . 3 . Tunneler 4 | 4 . . . . . . . . . . . . . . . . . Hauler 1 | . . . . . . . . . . . . 1 . . . . . Recycler 1 | 1 . . . . . . . . . . . . . . . . . Watcher 7 | . . . . . . . . . . . 5 . . . . 2 . Swarmer 40 | . . . . . . . . 6 . 4 14 4 . . 9 . 3 Grunt 45 | . . . . 1 3 . . 6 . . 14 13 1 . . 4 3 Brawler 6 | . . . . 1 . . . 2 . . . 2 . . . 1 . Duelist 2 | . . . . . . . . 1 . . . 1 . . . . . Sentry 19 | . . . . . 4 2 . 1 . 1 8 1 . . . 2 . Hunter 11 | . . . . . 2 . . . . . 4 . . . 1 4 . Programmer 23 | . . . . . . 3 . . . . 5 . . . . 15 . Heavy 1 | . . . . . . . . . . . . . . . . 1 . Decomposer 6 | . . . . . . . . 1 . . . 2 3 . . . . Samaritan 1 | . . . . . . . . 1 . . . . . . . . . Wasp 3 | . . . . . . . 3 . . . . . . . . . . Thug 1 | . . . . . . . 1 . . . . . . . . . . Best Kill Streak 14 | 4 . . . 2 5 2 3 9 . 4 14 9 1 . 5 3 2 Combat Bots Only 13 | . . . . 2 3 2 3 9 . 4 13 9 1 . 5 3 2 Max Kills in Single Turn 3 | 1 . . . 1 1 1 1 1 . 2 2 2 1 . 3 2 1 Gunslinging . | . . . . . . . . . . . . . . . . . . Exploded 2 | . . . . . . . . 1 . 2 . 2 . . 2 1 . Melee 1 | . . . . . 1 . . 1 . . . 1 . . . 1 . Uniques/NPCs Destroyed . | . . . . . . . . . . . . . . . . . . Combat | -11 -10 -10 -10 -9 -8 -7 -7 -7 -7 -6 -6 -6 -6 -6 -5 -5 -5 -------- Run | Scr Mat Min Exi Min Mat Fac Low Low Zio Pro Fac Low Low Dat Pro Fac Upp Damage Taken 11227 | . 10 4 . 103 465 239 392 1082 . 44 2723 955 14 . 354 2373 2469 Core 1721 | . 10 . . 33 43 9 165 125 . . 138 148 . . 33 204 813 Absorbed by Shields 71 | . . . . . . . . . . . . . . . . 71 . Redirected to Shielding 202 | . . . . . . . . 101 . . . . . . . 78 23 Regen/Repaired (Parts) 635 | . . . . . . . . . 635 . . . . . . . . Core Remaining (%) 78 | 100 . . . 82 92 . . . . 57 . . . . 62 . . Volleys Fired 393 | 12 1 . . 10 48 18 6 22 . 4 108 29 1 . 10 95 29 Largest 4 | 2 1 . . 2 4 4 4 4 . 3 4 4 3 . 4 3 2 Hottest 221 | 60 100 . . 120 195 184 180 188 . 113 202 221 178 . 221 168 121 Shots Fired 998 | 24 1 . . 15 91 49 22 72 . 12 342 95 3 . 33 199 40 Gun 338 | 24 . . . 10 37 18 12 36 . 6 120 . . . 1 54 20 Cannon 619 | . . . . . 34 31 10 34 . 4 222 87 3 . 29 145 20 Launcher 16 | . . . . . 1 . . 2 . 2 . 8 . . 3 . . Special 25 | . 1 . . 5 19 . . . . . . . . . . . . Kinetic 697 | 12 . . . 10 37 26 16 58 . 10 268 58 2 . 20 160 20 Thermal 285 | 12 1 . . 5 53 23 6 12 . . 74 29 1 . 10 39 20 Explosive 16 | . . . . . 1 . . 2 . 2 . 8 . . 3 . . Electromagnetic . | . . . . . . . . . . . . . . . . . . Robot Hit Streak 28 | 16 . . . 20 14 12 14 7 . 12 28 13 2 . 12 16 8 Robot Miss Streak 3 | 1 . . . 1 2 1 2 3 . . 3 2 1 . 1 2 1 Penetration Max 1 | . . . . . . . . . . . . . . . . 1 . Secondary Targets . | . . . . . . . . . . . . . . . . . . Shots Hit Robots 601 | 21 . . . 8 48 33 13 46 . 10 197 69 5 . 19 101 31 Core Hits 307 | 8 . . . 5 20 8 10 38 . 7 98 40 3 . 12 47 11 Critical Kills 3 | . . . . . . . . . . 1 1 . . . . . 1 Critical Parts Destroyed 5 | . . . . 1 . . . 1 . . 1 . . . . 2 . Critical Strikes 21 | . . . . 1 1 2 . 1 . 1 3 3 . . . 8 1 Meltdown 1 | . . . . . . . . . . . . . . . . . 1 Destroy 7 | . . . . 1 . . . 1 . 1 2 . . . . 2 . Blast 12 | . . . . . 1 2 . . . . 1 3 . . . 5 . Sever 1 | . . . . . . . . . . . . . . . . 1 . Melee Attacks 231 | . . . . . 21 22 . 4 37 . 63 9 3 . . 72 . Impact . | . . . . . . . . . . . . . . . . . . Slashing 230 | . . . . . 21 22 . 3 37 . 63 9 3 . . 72 . Piercing 1 | . . . . . . . . 1 . . . . . . . . . Sneak Attacks 14 | . . . . . 4 1 . 1 . . . 3 3 . . 2 . Combat Hostiles . | . . . . . . . . . . . . . . . . . . Follow-up Attacks . | . . . . . . . . . . . . . . . . . . Damage Inflicted 19737 | 253 . . . 148 1198 829 362 1450 . 479 5389 3263 275 . 815 4562 714 Guns 4486 | 253 . . . 76 302 184 183 474 . 141 1793 . . . 11 847 222 Cannons 10823 | . . . . . 447 547 179 470 . 71 3571 1892 69 . 528 2561 488 Explosions 2672 | . . . . . 75 . . 390 . 267 . 973 . . 276 691 . Melee 1607 | . . . . . 326 98 . 116 . . . 398 206 . . 463 . Ramming 29 | . . . . . . . . . . . 25 . . . . . 4 Kinetic 10391 | 121 . . . 76 341 387 237 744 . 212 3868 1159 69 . 256 2699 222 Thermal 5729 | 132 . . . 72 456 344 125 200 . . 1496 733 . . 283 1400 488 Explosive 1981 | . . . . . 75 . . 390 . 267 . 973 . . 276 . . Electromagnetic . | . . . . . . . . . . . . . . . . . . Impact . | . . . . . . . . . . . . . . . . . . Slashing 1607 | . . . . . 326 98 . 116 . . . 398 206 . . 463 . Piercing . | . . . . . . . . . . . . . . . . . . Highest Corruption 2 | . . . . . . . . . . . 1 . . . . 1 2 Average Corruption 1 | . . . . . . . . . . . 1 . . . . 1 1 Corruption Purged 2 | . . . . . . . . . . . 1 . . . . 1 . Corruption Blocked . | . . . . . . . . . . . . . . . . . . Effects 16 | . . . . . . . . . . . 2 . . . . 6 8 Message Errors 4 | . . . . . . . . . . . . . . . . 2 2 Matter Fused 6 | . . . . . . . . . . . . . . . . 4 2 Energy Discharges 1 | . . . . . . . . . . . 1 . . . . . . Data Loss (minor) 1 | . . . . . . . . . . . . . . . . . 1 Misfires 3 | . . . . . . . . . . . . . . . . . 3 Alerts 1 | . . . . . . . . . . . 1 . . . . . . Overload Shots . | . . . . . . . . . . . . . . . . . . Overflow Damage 1082 | . . . . . 120 23 . 55 . . 96 111 52 . 41 568 16 Projectiles 296 | . . . . . 4 13 . 3 . . 96 34 . . 41 89 16 Explosions 384 | . . . . . . . . 4 . . . 16 . . . 364 . Melee 402 | . . . . . 116 10 . 48 . . . 61 52 . . 115 . Knockbacks 45 | . . . . . . . . 1 . . 20 12 . . 2 10 . Impact . | . . . . . . . . . . . . . . . . . . Kinetic 43 | . . . . . . . . 1 . . 19 12 . . 2 9 . Secondary 2 | . . . . . . . . . . . 1 . . . . 1 . Self-Inflicted Damage 180 | . . . . . . . . . . . 12 24 . . . 144 . Shots 3 | . . . . . . . . . . . . 1 . . . 2 . Rammed 10 | . . . . . . . . . . . 1 . . . . . 9 Targets Rammed 10 | . . . . . . . . . . . 1 . . . . . 9 Kicked . | . . . . . . . . . . . . . . . . . . Crushed . | . . . . . . . . . . . . . . . . . . Highest Temperature 527 | . 20 . . 64 391 368 527 297 . 30 365 250 39 . 182 33 263 Average Temperature 99 | . 12 . . 26 106 124 218 87 . 15 89 102 26 . 69 12 89 Received Heat Transfer 2760 | . 9 . . 48 198 60 108 198 . . 862 381 9 . . 295 592 Effects 12 | . . . . . 2 . 6 . . . 1 . . . . . 3 Shutdowns 2 | . . . . . 1 . 1 . . . . . . . . . . Energy Bleed 1 | . . . . . 1 . . . . . . . . . . . . Interference 7 | . . . . . . . 3 . . . 1 . . . . . 3 Damage (minor) 1 | . . . . . . . 1 . . . . . . . . . . Damage (core) 1 | . . . . . . . 1 . . . . . . . . . . Siege Activations . | . . . . . . . . . . . . . . . . . . Robots Corrupted . | . . . . . . . . . . . . . . . . . . Combat Hostiles . | . . . . . . . . . . . . . . . . . . Parts Fried . | . . . . . . . . . . . . . . . . . . Impact Corruptions . | . . . . . . . . . . . . . . . . . . Robots Melted 1 | . . . . . . . . . . . . . . . . . 1 Combat Hostiles 1 | . . . . . . . . . . . . . . . . . 1 Parts Melted 8 | . . . . . 1 . . . . . 1 . . . . 1 5 Heat Transferred 7303 | 300 . . . 150 730 482 185 296 . . 1789 888 . . 358 1375 750 Parts Sabotaged . | . . . . . . . . . . . . . . . . . . Parts Stolen . | . . . . . . . . . . . . . . . . . . Parts Stripped . | . . . . . . . . . . . . . . . . . . Power Chain Reactions . | . . . . . . . . . . . . . . . . . . Missiles Intercepted . | . . . . . . . . . . . . . . . . . . Alert | -11 -10 -10 -10 -9 -8 -7 -7 -7 -7 -6 -6 -6 -6 -6 -5 -5 -5 ------- Run | Scr Mat Min Exi Min Mat Fac Low Low Zio Pro Fac Low Low Dat Pro Fac Upp Peak Influence 573 | 35 22 7 . 55 129 83 . . . . 573 . . . . 279 . Initial 62 | . 19 7 . . 9 25 . . . . . . . . . 62 . Average 75 | 11 20 7 . 34 46 27 . . . . 118 . . . . 75 . Maximum Alert Level 2 | . . . . . . . . . . . 2 . . . . 1 . Low Security (%) 90 | 100 100 100 . 100 100 100 . . . . 74 . . . . 96 . Level 1 8 | . . . . . . . . . . . 22 . . . . 3 . Level 2 1 | . . . . . . . . . . . 3 . . . . . . Level 3 . | . . . . . . . . . . . . . . . . . . Level 4 . | . . . . . . . . . . . . . . . . . . Level 5 . | . . . . . . . . . . . . . . . . . . High Security . | . . . . . . . . . . . . . . . . . . Max Security . | . . . . . . . . . . . . . . . . . . Squads Dispatched 34 | . . . . . 1 4 . 1 . . 12 . . . . 16 . Investigation 2 | . . . . . . . . . . . 1 . . . . 1 . Extermination 15 | . . . . . . 4 . . . . 4 . . . . 7 . Reinforcement 14 | . . . . . 1 . . . . . 5 . . . . 8 . Assault 1 | . . . . . . . . 1 . . . . . . . . . Garrison 2 | . . . . . . . . . . . 2 . . . . . . Intercept . | . . . . . . . . . . . . . . . . . . Searches Triggered . | . . . . . . . . . . . . . . . . . . Data Miner Redirects 1 | . . . . . . . . . . . . . . . . 1 . Construction Impeded 3 | . . . . . . . . . . . 1 . . . . 2 . Haulers Reinforced . | . . . . . . . . . . . . . . . . . . Active Scanning Responses . | . . . . . . . . . . . . . . . . . . Cargo Convoy Interrupts 1 | . . . . . . . . . . . . . . . . 1 . Stealth | -11 -10 -10 -10 -9 -8 -7 -7 -7 -7 -6 -6 -6 -6 -6 -5 -5 -5 --------- Run | Scr Mat Min Exi Min Mat Fac Low Low Zio Pro Fac Low Low Dat Pro Fac Upp Distress Signals 7 | . 1 . . . 1 . . . . . 2 . . . . 3 . Communications Jammed . | . . . . . . . . . . . . . . . . . . Distress Signals . | . . . . . . . . . . . . . . . . . . Times Spotted 225 | . 2 4 . 2 13 9 4 21 . 5 66 22 1 . 10 54 12 Peak Tracking Total 13 | . 2 3 . 2 4 2 4 9 . 4 8 9 1 . 5 13 5 Tactical Retreats 18 | . . . . . 7 . . 1 . . 4 2 . . . 2 2 Traps | -11 -10 -10 -10 -9 -8 -7 -7 -7 -7 -6 -6 -6 -6 -6 -5 -5 -5 ------- Run | Scr Mat Min Exi Min Mat Fac Low Low Zio Pro Fac Low Low Dat Pro Fac Upp Traps Triggered 4 | . . . . . . . . . . . 2 . . . . 2 . Indirectly . | . . . . . . . . . . . . . . . . . . Trap Hack Attempts . | . . . . . . . . . . . . . . . . . . Triggered . | . . . . . . . . . . . . . . . . . . Disarmed . | . . . . . . . . . . . . . . . . . . Reprogrammed 4 | . . . . . . . . . . . . . . . . 4 . Reused 1 | . . . . . . . . . . . . . . . . 1 . Traps Extracted . | . . . . . . . . . . . . . . . . . . Installed . | . . . . . . . . . . . . . . . . . . Triggered 4 | . . . . . . . . . . . . . . . . 4 . Machines | -11 -10 -10 -10 -9 -8 -7 -7 -7 -7 -6 -6 -6 -6 -6 -5 -5 -5 ---------- Run | Scr Mat Min Exi Min Mat Fac Low Low Zio Pro Fac Low Low Dat Pro Fac Upp Machines Disabled 13 | . . . . . . 1 . 2 . . 1 . . . . 9 . Max in Single Turn 4 | . . . . . . 1 . 1 . . 1 . . . . 4 . Garrison Access 2 | . . . . . . . . . . . 2 . . . . . . Machines Sabotaged . | . . . . . . . . . . . . . . . . . . Garrisons Compromised 1 | . . . . . . . . . . . . . . . . 1 . Overloaded Fab Kills . | . . . . . . . . . . . . . . . . . . Hacking | -11 -10 -10 -10 -9 -8 -7 -7 -7 -7 -6 -6 -6 -6 -6 -5 -5 -5 --------- Run | Scr Mat Min Exi Min Mat Fac Low Low Zio Pro Fac Low Low Dat Pro Fac Upp Machines Accessed 56 | . . . 5 1 9 6 3 2 . . 16 2 1 4 . 7 . Terminals 27 | . . . . 1 7 5 . . . . 8 . . . . 6 . Fabricators 4 | . . . . . . . . . . . 3 . . . . 1 . Repair Stations . | . . . . . . . . . . . . . . . . . . Recycling Units 6 | . . . . . 2 1 . . . . 3 . . . . . . Scanalyzers . | . . . . . . . . . . . . . . . . . . Garrison Access 2 | . . . . . . . . . . . 2 . . . . . . Total Hacks 200 | . . . 50 6 22 10 8 2 . . 40 6 1 29 . 26 . Successful 163 | . . . 50 3 18 5 8 2 . . 24 6 1 29 . 17 . Failed 37 | . . . . 3 4 5 . . . . 16 . . . . 9 . Catastrophic 3 | . . . . . . 2 . . . . 1 . . . . . . Database Lockouts . | . . . . . . . . . . . . . . . . . . Manual 58 | . . . 1 2 15 6 . . 2 . 18 . . . . 14 . Terminals 79 | . . . . 6 20 9 . . . . 21 . . . . 23 . Fabricators 7 | . . . . . . . . . . . 4 . . . . 3 . Repair Stations . | . . . . . . . . . . . . . . . . . . Recycling Units 14 | . . . . . 2 1 . . . . 11 . . . . . . Scanalyzers . | . . . . . . . . . . . . . . . . . . Garrison Access 4 | . . . . . . . . . . . 4 . . . . . . Terminal Hacks 118 | . . . 50 2 6 2 8 2 . . 6 6 1 29 . 6 . Record 74 | . . . 49 . 2 . 6 . . . . 5 1 11 . . . Part Schematic 10 | . . . . . . . . . . . . . . 10 . . . Robot Schematic 5 | . . . . . . . . . . . . . . 5 . . . Prototype ID Bank 3 | . . . . . . . . . . . . . . 3 . . . Open Door 5 | . . . . . . . 2 2 . . . 1 . . . . . Open DSF 3 | . . . . . . 2 . . . . 1 . . . . . . Branch Access Points 3 | . . . . . 1 . . . . . 1 . . . . 1 . Unreport Threat 3 | . . . . . 2 . . . . . 1 . . . . . . Locate Traps 4 | . . . . . 1 . . . . . 2 . . . . 1 . Reprogram Traps 1 | . . . . . . . . . . . . . . . . 1 . Dispatch Records 1 | . . . . 1 . . . . . . . . . . . . . Patrol Status 1 | . . . . 1 . . . . . . . . . . . . . Hauler Manifests 1 | . . . . . . . . . . . 1 . . . . . . Zone Layout 3 | . . . . . . . . . . . . . . . . 3 . EX-Prototype ID Bank 1 | . . . 1 . . . . . . . . . . . . . . Fabricator Hacks 2 | . . . . . . . . . . . . . . . . 2 . Load Schematic 1 | . . . . . . . . . . . . . . . . 1 . Build 1 | . . . . . . . . . . . . . . . . 1 . Repair Station Hacks . | . . . . . . . . . . . . . . . . . . Recycling Unit Hacks 6 | . . . . . 2 1 . . . . 3 . . . . . . Retrieve Components 6 | . . . . . 2 1 . . . . 3 . . . . . . Scanalyzer . | . . . . . . . . . . . . . . . . . . Garrison Access Hacks 2 | . . . . . . . . . . . 2 . . . . . . Seal Access 2 | . . . . . . . . . . . 2 . . . . . . Unauthorized Hacks 34 | . . . . 1 10 2 . . . . 12 . . . . 9 . Terminals 28 | . . . . 1 10 2 . . . . 7 . . . . 8 . Track 9 | . . . . 1 3 . . . . . 3 . . . . 2 . Assimilate 1 | . . . . . 1 . . . . . . . . . . . . Botnet 17 | . . . . . 6 2 . . . . 4 . . . . 5 . Disrupt 1 | . . . . . . . . . . . . . . . . 1 . Fabricators 4 | . . . . . . . . . . . 3 . . . . 1 . Report 1 | . . . . . . . . . . . 1 . . . . . . Fabnet 3 | . . . . . . . . . . . 2 . . . . 1 . Repair Stations . | . . . . . . . . . . . . . . . . . . Recycling Units 2 | . . . . . . . . . . . 2 . . . . . . Monitor 2 | . . . . . . . . . . . 2 . . . . . . Scanalyzers . | . . . . . . . . . . . . . . . . . . Garrison Access . | . . . . . . . . . . . . . . . . . . Data Cores Recovered . | . . . . . . . . . . . . . . . . . . Used . | . . . . . . . . . . . . . . . . . . Hacking Detections 29 | . . . . 1 5 4 . . . . 12 . . . . 7 . Full Trace Events 3 | . . . . . 1 . . . . . 1 . . . . 1 . Feedback Events . | . . . . . . . . . . . . . . . . . . Feedback Blocked . | . . . . . . . . . . . . . . . . . . Robot Schematics Acquired 8 | . . . . . . . . . 3 . . . . 5 . . . Robots Built . | . . . . . . . . . . . . . . . . . . Authchips . | . . . . . . . . . . . . . . . . . . Time . | . . . . . . . . . . . . . . . . . . Total Robot Build Rating . | . . . . . . . . . . . . . . . . . . Part Schematics Acquired 25 | . . . . . . . . . 15 . . . . 10 . . . Parts Built 2 | . . . . . . . . . . . . . . . . 2 . Authchips . | . . . . . . . . . . . . . . . . . . Time 84 | . . . . . . . . . . . . . . . . 84 . Total Part Build Rating 8 | . . . . . . . . . . . . . . . . 8 . Parts Repaired . | . . . . . . . . . . . . . . . . . . Time . | . . . . . . . . . . . . . . . . . . Parts Recycled . | . . . . . . . . . . . . . . . . . . Recycled Matter . | . . . . . . . . . . . . . . . . . . Retrieved Matter . | . . . . . . . . . . . . . . . . . . Retrieved Components 20 | . . . . . 10 3 . . . . 7 . . . . . . Parts Scanalyzed . | . . . . . . . . . . . . . . . . . . Part Schematics Acquired . | . . . . . . . . . . . . . . . . . . Parts Damaged . | . . . . . . . . . . . . . . . . . . Bothacking | -11 -10 -10 -10 -9 -8 -7 -7 -7 -7 -6 -6 -6 -6 -6 -5 -5 -5 ------------ Run | Scr Mat Min Exi Min Mat Fac Low Low Zio Pro Fac Low Low Dat Pro Fac Upp Used RIF Installer . | . . . . . . . . . . . . . . . . . . Robots Hacked 5 | . . . . . . . . . . . . . . . 1 3 1 Non-combat . | . . . . . . . . . . . . . . . . . . Combat 5 | . . . . . . . . . . . . . . . 1 3 1 Robot Hacks Applied . | . . . . . . . . . . . . . . . . . . Relay Couplers Released . | . . . . . . . . . . . . . . . . . . Fabnet Peak Effective % 6 | . . . . . . . . . . . . . . . 6 6 6 Autooverrided 5 | . . . . . . . . . . . . . . . 1 3 1 Robots Rewired 7 | . . . . . . . . 5 . . . 2 . . . . . Allies Hacked . | . . . . . . . . . . . . . . . . . . Hacks Repelled . | . . . . . . . . . . . . . . . . . . Allies | -11 -10 -10 -10 -9 -8 -7 -7 -7 -7 -6 -6 -6 -6 -6 -5 -5 -5 -------- Run | Scr Mat Min Exi Min Mat Fac Low Low Zio Pro Fac Low Low Dat Pro Fac Upp Total Allies 16 | . . . . 3 . . . 5 . . . 2 . . 2 3 1 Largest Group 5 | . . . . 3 3 . . 5 1 1 . 2 2 . 2 2 1 Highest-Rated Group 143 | . . . . 40 40 . . 120 25 25 . 60 60 . 130 143 29 Highest-Rated Ally 96 | . . . . 16 16 . . 25 25 25 . 30 30 . 96 89 29 Total Orders 5 | . . . . . . . . . . 1 . . 1 . . 3 . ROAM 2 | . . . . . . . . . . 1 . . 1 . . . . RETURN 3 | . . . . . . . . . . . . . . . . 3 . Ally Attacks 43 | . . . . 1 11 . . 16 . . . . 3 . 2 5 5 Total Damage 810 | . . . . 15 142 . . 377 . . . . 110 . 77 32 57 Kills 6 | . . . . 1 1 . . 3 . . . . . . 1 . . Allies Corrupted . | . . . . . . . . . . . . . . . . . . Allies Melted 1 | . . . . . . . . 1 . . . . . . . . . Intel | -11 -10 -10 -10 -9 -8 -7 -7 -7 -7 -6 -6 -6 -6 -6 -5 -5 -5 ------- Run | Scr Mat Min Exi Min Mat Fac Low Low Zio Pro Fac Low Low Dat Pro Fac Upp Robot Analysis Total . | . . . . . . . . . . . . . . . . . . Derelict Logs Recovered 14 | . . 1 . 2 . . 1 1 2 1 . 2 1 . 1 . 2 Drone Launches 3 | . . . . . . . . . . . . . . . . 3 . Drone Recoveries 3 | . . . . . . . . . . . . . . . . 3 . Exploration | -11 -10 -10 -10 -9 -8 -7 -7 -7 -7 -6 -6 -6 -6 -6 -5 -5 -5 ------------- Run | Scr Mat Min Exi Min Mat Fac Low Low Zio Pro Fac Low Low Dat Pro Fac Upp Turns Passed 28362 | 141 131 122 535 713 1416 2376 2189 2199 2852 1291 4918 1982 1415 151 780 3986 1165 Spaces Moved 13758 | 92 126 114 491 582 817 1024 979 902 1171 538 2498 1136 789 95 451 1802 151 Core 65 | 8 . . . . . . . . . . . . . . . 1 56 Treads . | . . . . . . . . . . . . . . . . . . Legs 7 | . . . . . . . . . . . . . . . . . 7 Wheels 13686 | 84 126 114 491 582 817 1024 979 902 1171 538 2498 1136 789 95 451 1801 88 Hover . | . . . . . . . . . . . . . . . . . . Flight . | . . . . . . . . . . . . . . . . . . Fastest Speed 50 | 50 100 100 100 115 115 205 220 205 220 235 160 115 160 160 160 100 115 Average Speed 179 | 95 100 100 107 115 128 209 220 223 234 235 160 159 160 160 161 160 622 Slowest Speed 1750 | 200 100 100 115 115 130 220 220 235 235 235 160 160 160 160 235 1750 1700 Overloaded Moves . | . . . . . . . . . . . . . . . . . . Propulsion Burnouts . | . . . . . . . . . . . . . . . . . . Robots Hopped . | . . . . . . . . . . . . . . . . . . Cave-ins Triggered 1 | . . . . . . . . . . . 1 . . . . . . Exploration Rate (%) 61 | 4 25 42 92 100 59 25 93 85 85 69 68 95 78 75 62 39 17 Regions Visited 17 Branch Regions 12 Pre-discovered Areas 6 | . . . 1 1 . . 1 . 2 . . . . 1 . . . Known Exits Taken 6 | . . . . . . 1 . . . 1 1 1 . . 1 1 . Unknown Exits Taken 11 | 1 1 1 1 1 1 . 1 1 1 . . . 1 1 . . . Scrap Searched 18 | . . 1 . 2 . . 2 5 2 . . 2 1 . 2 . 1 Spaces Dug 304 | . 1 . . . 40 21 . . . . 89 25 . . . 128 . Terrain Destroyed 701 | . 1 . . . 51 21 . 35 . 17 123 143 1 . 56 249 4 Melee 156 | . . . . . 15 20 . . . . 62 . . . . 59 . Projectile 244 | . 1 . . . 31 1 . 6 . . 61 28 1 . 10 101 4 AOE 301 | . . . . . 5 . . 29 . 17 . 115 . . 46 89 . Terrain Rammed . | . . . . . . . . . . . . . . . . . . Walls Destroyed . | . . . . . . . . . . . . . . . . . . Machines Disabled . | . . . . . . . . . . . . . . . . . . Actions | -11 -10 -10 -10 -9 -8 -7 -7 -7 -7 -6 -6 -6 -6 -6 -5 -5 -5 --------- Run | Scr Mat Min Exi Min Mat Fac Low Low Zio Pro Fac Low Low Dat Pro Fac Upp Total 16213 | 118 127 122 496 600 1035 1186 999 1026 1235 555 3114 1222 936 94 477 2648 223 Wait 1439 | . . 9 . 7 120 92 . 9 16 11 384 6 143 . 8 625 9 Move 13741 | 91 125 113 490 581 816 1023 978 901 1170 537 2497 1135 788 94 450 1801 151 Hop . | . . . . . . . . . . . . . . . . . . Pick Up 90 | 6 . . 4 1 7 11 5 2 4 . 13 23 . . . 13 1 Fast Attach 37 | 7 . . . . 6 2 1 4 2 . 4 1 . . 1 5 4 Attach 39 | 1 . . . . 3 4 . 6 . . 10 3 . . 4 7 1 Detach 22 | 1 . . . . 5 4 1 2 2 . 5 . . . 2 . . Swap 68 | . 1 . 1 1 6 3 5 5 2 3 17 3 1 . 2 18 . Drop 29 | . . . 1 . 3 7 3 . 1 . 12 . . . . 2 . Fire 393 | 12 1 . . 10 48 18 6 22 . 4 108 29 1 . 10 95 29 Melee 231 | . . . . . 21 22 . 4 37 . 63 9 3 . . 72 . Ram 10 | . . . . . . . . . . . 1 . . . . . 9 Kick . | . . . . . . . . . . . . . . . . . . Crush . | . . . . . . . . . . . . . . . . . . Escape Stasis 10 | . . . . . . . . . . . . . . . . 10 . Rewire 104 | . . . . . . . . 71 1 . . 13 . . . . 19 Trap . | . . . . . . . . . . . . . . . . . . Miscellaneous . | . . . . . . . . . . . . . . . . . . Route ------- -11/Scrapyard -10/Materials -10/Mines -10/Exiles -9/Mines (discovered 2 exits: *Mat x2) -8/Materials -7/Factory (discovered 2 exits: *Low x2) -7/Lower Caves -7/Lower Caves (discovered 2 exits: *Fac / *Zio) -7/Zion -6/Proximity Caves -6/Factory (discovered 5 exits: *Fac x3 / *Low x2) -6/Lower Caves -6/Lower Caves (discovered 2 exits: *Fac / *Dat) -6/Data Miner -5/Proximity Caves -5/Factory (discovered 6 exits: Fac x4 / *Upp x2) -5/Upper Caves History --------- Turn | Location | Event 13 | -11/Scrapyard | Discovered new exit (range 16) 142 | -11/Scrapyard | Entered Materials 245 | -10/Materials | Met 8R-AWN 253 | -10/Materials | Discovered new exit (range 9) 273 | -10/Materials | Entered Mines 274 | -10/Mines | Followed 8R-AWN into the Mines 310 | -10/Mines | Build established: Mutant 391 | -10/Mines | Discovered new exit (range 5) 395 | -10/Mines | Entered Exiles 420 | -10/Exiles | Welcomed by 8R-AWN 441 | -10/Exiles | Met EX-HEX 481 | -10/Exiles | Met EX-BIN 497 | -10/Exiles | Aligned with FarCom system 498 | -10/Exiles | Given EX-Vault access code 540 | -10/Exiles | Opened EX-Vault 548 | -10/Exiles | Found Cloak of Protection 569 | -10/Exiles | Warned to stay clear of 0b10 Research branches 654 | -10/Exiles | Met EX-DEC 675 | -10/Exiles | Visited The Gauntlet 850 | -10/Exiles | Learned location of Zion (-7) 919 | -10/Exiles | Discovered new exit (range 12) 930 | -10/Exiles | Left Exiles lab with Cloak of Protection 930 | -10/Exiles | Entered Mines 965 | -9/Mines | Discovered new exit (range 7) 992 | -9/Mines | Assisted by bots powering up and referring to "LRC-V3" 1024 | -9/Mines | Excavation squad dispatched 1024 | -9/Mines | A large section of the Mines collapsed 1217 | -9/Mines | Build established: Skirmisher 1291 | -9/Mines | Discovered new exit (range 14) 1643 | -9/Mines | Entered Materials 1643 | -8/Materials | Accompanied by 3 allies 1643 | -8/Materials | Evolved 4 slots: Utility x2, Weapon x2 2524 | -8/Materials | Build established: Scavenger-Assassin 2727 | -8/Materials | Discovered new exit (range 13) 3059 | -8/Materials | Entered Factory 3059 | -7/Factory | Evolved 2 slots: Utility x2 3060 | -7/Factory | Identified exit to Lower Caves 3368 | -7/Factory | Build established: Hauler-Assassin 5248 | -7/Factory | Discovered exit to Lower Caves (range 11) 5435 | -7/Factory | Entered Lower Caves 5594 | -7/Lower Caves | Learned Armory trap positions 5594 | -7/Lower Caves | Learned Factory stockpile data 5734 | -7/Lower Caves | Build established: Hauler-Mutant 6106 | -7/Lower Caves | Build established: Hauler-Gunner 6234 | -7/Lower Caves | Encountered a Warlord checkpoint 6567 | -7/Lower Caves | Learned Factory stockpile data 6787 | -7/Lower Caves | Ambushed by wild Derelicts 7287 | -7/Lower Caves | Discovered new exit (range 2) 7624 | -7/Lower Caves | Entered another Lower Caves area 7852 | -7/Lower Caves | Discovered new exit (range 7) 7971 | -7/Lower Caves | Attracted the attention of an 0b10 outpost 8042 | -7/Lower Caves | Lost 5 parts (1p2u2w) 8049 | -7/Lower Caves | Destroyed 9 combat bots 8293 | -7/Lower Caves | Attacked by a delusional Derelict stockpiling Unaware 8774 | -7/Lower Caves | Build established: Hauler-Tank 8977 | -7/Lower Caves | Learned location of 1 exit from Proximity Caves 9075 | -7/Lower Caves | Discovered new exit (range 6) 9554 | -7/Lower Caves | Build established: Hauler-Mutant 9823 | -7/Lower Caves | Entered Zion 9823 | -7/Zion | Accompanied by 1 ally 9875 | -7/Zion | Learned Factory emergency access door positions 10039 | -7/Zion | Discovered new exit (range 16) 10264 | -7/Zion | Learned location of 2 exits from Factory 10347 | -7/Zion | Learned location of Armory (-3) 10615 | -7/Zion | Given the Hacking Drone Bay 10619 | -7/Zion | Found Prototype Device 10960 | -7/Zion | Found Prototype Device 11496 | -7/Zion | Visited the Megawrench Repair Shop 11496 | -7/Zion | Megawrench repaired 9 parts 11952 | -7/Zion | Rebuked by Imprinter 12675 | -7/Zion | Entered Proximity Caves 12675 | -6/Proximity Caves | Accompanied by 1 ally 12676 | -6/Proximity Caves | Identified exit to Factory 12753 | -6/Proximity Caves | Attracted the attention of an 0b10 checkpoint 13037 | -6/Proximity Caves | Build established: Hauler-Tank 13092 | -6/Proximity Caves | Spotted B-75 Beast 13651 | -6/Proximity Caves | Learned Factory emergency access door positions 13966 | -6/Proximity Caves | Entered Factory 13966 | -6/Factory | Evolved 2 slots: Propulsion x2 13967 | -6/Factory | Identified exit to Factory 14184 | -6/Factory | Identified exit to Lower Caves 14783 | -6/Factory | Garrison activated, responded to threat 15543 | -6/Factory | Identified Hacking Drone Bay 15544 | -6/Factory | Identified Mobile Refinery Mk. CCLXVII 15873 | -6/Factory | Destroyed 13 combat bots 16296 | -6/Factory | Build established: Hauler-Mutant 16297 | -6/Factory | Discovered exit to Factory (range 13) 16803 | -6/Factory | Build established: Hauler-Tank 17639 | -6/Factory | Build established: Hauler-Mutant 18824 | -6/Factory | Crushed by falling debris 18884 | -6/Factory | Entered Lower Caves 19194 | -6/Lower Caves | Build established: Hauler-Tank 19938 | -6/Lower Caves | Learned Factory emergency access door positions 20217 | -6/Lower Caves | Encountered a Warlord checkpoint 20363 | -6/Lower Caves | Identified exit to Lower Caves 20413 | -6/Lower Caves | Learned Factory terminal intel 20413 | -6/Lower Caves | Learned Factory garrison access intel 20529 | -6/Lower Caves | Attracted the attention of an 0b10 outpost 20606 | -6/Lower Caves | Destroyed 9 combat bots 20866 | -6/Lower Caves | Entered another Lower Caves area 20866 | -6/Lower Caves | Accompanied by 2 allies 21496 | -6/Lower Caves | Learned location of 2 exits from Factory 21524 | -6/Lower Caves | Discovered exit to Factory (range 15) 21897 | -6/Lower Caves | Discovered new exit (range 7) 22281 | -6/Lower Caves | Entered Data Miner 22281 | -6/Data Miner | Discovered new exit (range 6) 22312 | -6/Data Miner | Met Data Miner 22352 | -6/Data Miner | Learned location of Section 7 (-2) 22352 | -6/Data Miner | Acquired the access code to Warlord's prototype stash 22366 | -6/Data Miner | Received God Mode back door access code from Data Miner 22432 | -6/Data Miner | Entered Proximity Caves 22724 | -5/Proximity Caves | Learned Factory terminal intel 22840 | -5/Proximity Caves | Escorted by Enhanced Grunt 23177 | -5/Proximity Caves | Discovered exit to Factory (range 14) 23212 | -5/Proximity Caves | Entered Factory 23212 | -5/Factory | Accompanied by 1 ally 23212 | -5/Factory | Evolved 2 slots: Utility x2 23213 | -5/Factory | Identified exit to Factory 23216 | -5/Factory | Loaded intel: 26 terminal locations 23217 | -5/Factory | Loaded intel: 4 garrison access locations 23645 | -5/Factory | Incoming investigation squad redirected 23703 | -5/Factory | Fabricated Arm. Huge Wheel (x2) 23882 | -5/Factory | Build established: Hauler-Mutant 24190 | -5/Factory | Cargo convoy interrupted 25297 | -5/Factory | Identified exit to Upper Caves 26171 | -5/Factory | Build established: Hauler-Gunner 27198 | -5/Factory | Entered Upper Caves 27198 | -5/Upper Caves | Spotted B-75 Beast 27212 | -5/Upper Caves | Lost 30 parts (4p4n10u12w) 27277 | -5/Upper Caves | Lost 4 parts (1p1n2u) 27329 | -5/Upper Caves | Learned 12 Factory zone layouts 27436 | -5/Upper Caves | Build established: Mutant 27463 | -5/Upper Caves | Lost 4 parts (1p2n1w) 27882 | -5/Upper Caves | Learned Factory garrison access intel 28192 | -5/Upper Caves | Attracted the attention of an 0b10 checkpoint 28201 | -5/Upper Caves | Core integrity fell below 50% 28324 | -5/Upper Caves | Core integrity fell below 20% 28363 | -5/Upper Caves | Destroyed by Y-64 Sentinel with KE Penetrator Last Messages --------------- 28288_ Penetrated by Slug. 28288_ Lyr. Heavy Armor Plating destroyed. 28300_ Penetrated by Slug. 28304_ Slammed into Y-64 Sentinel. 28305_ Penetrated by Slug. 28311_ Slug penetrates Wall. 28318_ Slammed into Y-64 Sentinel. 28323_ Penetrated by Slug. 28331_ Slammed into Y-64 Sentinel. 28331_ Destabilizing: System corrupted (+1). 28334_ Penetrated by Slug. 28337_ System corrupted: Component data lost. 28340_ Critical hit (Burn: +37). 28340_ Penetrated by Slug. 28345_ Slammed into Y-64 Sentinel. 28346_ Slug penetrates Wall. 28352_ Penetrated by Slug. 28358_ Slug penetrates Wall. 28358_ Slammed into Y-64 Sentinel. 28363_ Penetrated by Slug. Map ----- +----------------------------------------------------+ | ?????????????????????????????????????????????????? | | ?????????????????????????????????????????????????? | | ???????????????????????????????????????###???????? | | ??????????????????????????????????????## ???????? | | ??????????????????????????????????????? ???????? | | ??????????????????????????????????????? ???????? | | ??????????????????????????????????????? ####???? | | ???????????????????????? ???????????? ###?? | | ??????????????????????? ? ???????????? ??? | | ??????????????????????? ? #??????????? ???? | | ???????????????????????? ? #?##?#????? ????? | | ????????????????????????? ? ## ? ???### #????? | | ??????????????????????????# ? # ???? #???## | | ???????????????????????????# # ????? ##?## | | ????????????????????????????# # ####### ### | | ?????????????????????????????# ## % | | ???????????????????????????????# ## % | | ?????????????????#??????????????# % ##""##### | | ?????????????????# ?????????????# % " # | | ?????????????????# ?????####??### # #"% | | ?????????????????# ??### #### ### # "" | | ?????????????????# ??# #?# #"% | | ???????????????### ### ##?# #" # | | ???????????????# # #??# + # | | ???????????????# #Y ## #??# # | | ???????????????# #%@### "T" % " | | ???????????????# #!%#?## #"" ""# | | ???????????????# %%#??## #### ##### ### | | ???????????????# %%##### #??# ? $ | | ???????????????# #??# $ | | ???????????????# ;##########??####?##### # | | ???????????????########?????????????????????## ## | | ?????????????????????????????????????????????####? | | ?????????????????????????????????????????????????? | | ?????????????????????????????????????????????????? | | ?????????????????????????????????????????????????? | | ?????????????????????????????????????????????????? | | ?????????????????????????????????????????????????? | | ?????????????????????????????????????????????????? | | ?????????????????????????????????????????????????? | | ?????????????????????????????????????????????????? | | ?????????????????????????????????????????????????? | | ?????????????????????????????????????????????????? | | ?????????????????????????????????????????????????? | | ?????????????????????????????????????????????????? | | ?????????????????????????????????????????????????? | | ?????????????????????????????????????????????????? | | ?????????????????????????????????????????????????? | | | | | +----------------------------------------------------+ Best States ------------- Heat Dissipation 71 Energy Generation 19 Energy Capacity 500 Matter Stores 300 Matter Capacity 300 Sight Range 16 Robot Scan Range 15 Terrain Scan Range 16 Terrain Scan Density 10 Cloak Strength 5 Armor Coverage 600 Resistance: KI 50 Resistance: TH 20 Resistance: EX 20 Resistance: EM 20 Resistance: I 20 Resistance: S 20 Resistance: P 20 Core Shielding 30 Weapon Shielding 66 Evasion (%) 42 Targeting Accuracy 8 Core Analysis 6 Kinecelleration 40 Offensive Hacking 10 Item Schematics ----------------- Gatling Laser | -7/Zion | Archive Arm. Leg | -7/Zion | Archive Dynamic Insulation System | -7/Zion | Archive Lgt. Fission Core | -7/Zion | Archive Arm. Huge Wheel | -7/Zion | Archive Energy Well | -7/Zion | Archive Mak. Shrapnel Gun | -7/Zion | Archive Imp. Transmission Jammer | -7/Zion | Archive KE Penetrator | -7/Zion | Archive Imp. Field Recycling Unit | -7/Zion | Archive 0b10 Decoder Chip [Generic] | -7/Zion | Archive Imp. Core Shielding | -7/Zion | Archive Mak. Flight Unit | -7/Zion | Archive Adv. Signal Interpreter | -7/Zion | Archive Hvy. Mass Driver | -7/Zion | Archive Combat Drone Bay | -6/Data Miner | Free Lgt. Regenerative Plating | -6/Data Miner | Free Cld. Nuclear Pulse Thruster | -6/Data Miner | Free Imp. Matter Compressor | -6/Data Miner | Free Neutron Cannon | -6/Data Miner | Free Imp. Linear Gravjet | -6/Data Miner | Free Adv. Cryofiber Web | -6/Data Miner | Free Micro-nuke Launcher | -6/Data Miner | Free Imp. Fusion Compressor | -6/Data Miner | Free Adv. Actuator Array | -6/Data Miner | Free Robot Schematics ------------------ R-06 Scavenger | -7/Zion | Archive L-41 Fighter | -7/Zion | Archive A-02 Transporter | -7/Zion | Archive B-60 Warrior | -6/Data Miner | Free A-15 Conveyor | -6/Data Miner | Free R-10 Processor | -6/Data Miner | Free E-15 Imp | -6/Data Miner | Free H-77 Assassin | -6/Data Miner | Free Fabricated ------------ Arm. Huge Wheel | x2 | -5/Factory Alien Tech Used ----------------- None Achievements -------------- None Challenges ------------ None Game ------ Seed ChargeRecyclingNanovents Manual? 0 Play Time 04:04:28 Cumulative 461.9 hours Start 2022.03.16 @ 21:02:49 End 2022.03.18 @ 22:13:51 Sessions 19 Manual Loads 0 Difficulty Adventurer Special Mode None Game No. 17 Rogue 0 Adventurer 17 Explorer 0 Win Type - Total 1 Types 1/0/0/0/0/0/0/0/0 Lore% 33 Gallery% 54 Achievement% 42 Wizard Run 0 Options --------- ASCII 0 Keyboard 1 Movement Vi Keybinds 0 Fullscreen 1 Font 18/X11Bold Map View 66x50 Tactical HUD 1 Map Filters NONE Filters NONE Steam 1 RUN: 5532e08f-51b9-441f-9171-b5d6c9cda4cb